bitfinex/quotes_BTCUSD_20251201
["timestamp","ask_amount","ask_price","bid_price","bid_amount"]
[1764576389282,0.5,86600.0,86599.0,0.78201472]
[1764576390140,0.5,86600.0,86599.0,0.78901472]
[1764576390990,0.5,86600.0,86599.0,0.79001472]
[1764576393800,0.5,86600.0,86599.0,0.78977472]
[1764576395115,0.5,86600.0,86599.0,0.78245472]
[1764576395366,0.5,86600.0,86599.0,0.78977472]
[1764576395555,0.5,86600.0,86599.0,0.78877472]
[1764576395951,0.5,86600.0,86599.0,0.78177472]
[1764576396724,0.5,86600.0,86599.0,0.78377472]
[1764576396924,0.5,86600.0,86599.0,0.78477472]
[1764576397332,0.5,86600.0,86599.0,0.77645472]
[1764576397585,0.5,86600.0,86599.0,0.78377472]
[1764576397800,0.5,86600.0,86599.0,0.38477472]
[1764576398687,0.5,86600.0,86599.0,0.36081472]
[1764576399214,0.5,86600.0,86599.0,0.38508472]
[1764576399421,0.475,86600.0,86599.0,0.38508472]
[1764576399571,0.475,86600.0,86599.0,0.38308472]
[1764576399976,0.475,86600.0,86599.0,0.38208472]
[1764576400166,0.475,86600.0,86599.0,0.38308472]
[1764576400522,0.475,86600.0,86599.0,0.38508472]
[1764576400722,0.475,86600.0,86599.0,0.38408472]
[1764576401244,0.475,86600.0,86599.0,0.38508472]
[1764576402666,0.475,86600.0,86599.0,0.78508472]
[1764576404047,0.475,86600.0,86599.0,1.10808472]
[1764576407225,0.5,86650.0,86627.0,0.2308749]
[1764576407462,0.5,86650.0,86627.0,0.2630649]
[1764576407669,0.5,86650.0,86649.0,0.23081628]
[1764576407881,0.5,86650.0,86649.0,0.26610628]
[1764576408045,0.5,86650.0,86649.0,0.28976628]
[1764576408473,0.5,86650.0,86649.0,0.38219146]
[1764576408474,0.47510428,86650.0,86649.0,0.38219146]
[1764576408902,0.47510428,86650.0,86649.0,1.10519146]
[1764576409116,0.0002,86660.0,86649.0,1.10519146]
[1764576409273,0.0002,86680.0,86677.0,0.01153708]
[1764576409475,0.00059268,86680.0,86679.0,0.25870639]
[1764576409793,0.00059268,86680.0,86679.0,0.28968639]
[1764576409943,0.00059268,86680.0,86679.0,0.68968639]
[1764576410142,0.00059268,86680.0,86679.0,0.78211157]
[1764576410562,0.00059268,86680.0,86679.0,1.10511157]
[1764576411007,0.00059268,86680.0,86679.0,1.10611157]
[1764576412015,0.00059268,86680.0,86679.0,1.11011157]
[1764576412237,0.00059268,86680.0,86679.0,1.10911157]
[1764576412527,0.00059268,86680.0,86679.0,1.10279157]
[1764576412680,0.00059268,86680.0,86679.0,1.11011157]
[1764576413277,0.00059268,86680.0,86679.0,1.10911157]
[1764576413684,0.00059268,86680.0,86679.0,1.11011157]
[1764576414039,0.00059268,86680.0,86679.0,1.10511157]
[1764576414275,0.00059268,86680.0,86679.0,0.68436639]
[1764576414489,0.00059268,86680.0,86679.0,0.78411157]
[1764576414643,0.00059268,86680.0,86679.0,0.78211157]
[1764576414846,0.00059268,86680.0,86679.0,0.78611157]
[1764576415250,0.00059268,86680.0,86679.0,0.78211157]
[1764576415451,0.00059268,86680.0,86679.0,0.78311157]
[1764576415886,0.00059268,86680.0,86679.0,0.78211157]
[1764576416294,0.00059268,86680.0,86679.0,0.78311157]
[1764576416939,0.00059268,86680.0,86679.0,0.77579157]
[1764576417079,0.00059268,86680.0,86679.0,0.12871518]
[1764576418410,0.00224095,86680.0,86679.0,0.12871518]
[1764576418611,0.00224095,86680.0,86679.0,0.15237518]
[1764576420116,0.00224095,86680.0,86679.0,0.17544881]
[1764576421101,0.00224095,86680.0,86679.0,0.57544881]
[1764576421304,0.00224095,86680.0,86679.0,0.55237518]
[1764576423227,0.00224095,86680.0,86679.0,0.78311157]
[1764576428332,0.00224095,86680.0,86679.0,1.10611157]
[1764576429221,0.0002,86690.0,86689.0,0.23070977]
[1764576429474,0.0003043,86690.0,86689.0,0.25386977]
[1764576429613,0.0003043,86690.0,86689.0,0.27752977]
[1764576429971,0.0003043,86690.0,86689.0,0.67752977]
[1764576430731,0.0003043,86690.0,86689.0,0.67952977]
[1764576431213,0.0002,86720.0,86689.0,0.67952977]
[1764576431413,0.0002,86720.0,86719.0,0.35048514]
[1764576431414,0.00030425,86720.0,86719.0,0.35048514]
[1764576431560,0.00030425,86720.0,86719.0,0.37414514]
[1764576431789,0.00030425,86720.0,86719.0,0.38146514]
[1764576432560,0.00030425,86720.0,86719.0,0.37414514]
[1764576432767,0.00030425,86720.0,86719.0,0.38146514]
[1764576434051,0.00030425,86720.0,86719.0,0.38246514]
[1764576434694,0.00030425,86720.0,86719.0,0.38146514]
[1764576435082,0.00157118,86720.0,86719.0,0.38146514]
[1764576437292,0.00157118,86720.0,86719.0,0.38246514]
[1764576438320,0.00157118,86720.0,86719.0,0.78246514]
[1764576440624,0.00157601,86722.0,86721.0,0.23062464]
[1764576440989,0.01508621,86739.0,86737.0,0.23058205]
[1764576441190,0.01508621,86739.0,86736.0,0.24211369]
[1764576441420,0.00355738,86739.0,86737.0,0.32300588]
[1764576441616,0.00355738,86739.0,86738.0,0.23057944]
[1764576441934,0.00415891,86739.0,86738.0,0.23057944]
[1764576442137,0.00060153,86739.0,86738.0,0.23057944]
[1764576443157,0.00060153,86739.0,86738.0,0.24632944]
[1764576443371,0.00060153,86739.0,86738.0,0.04049]
[1764576443541,0.00060153,86739.0,86738.0,0.27106944]
[1764576443745,0.00060153,86739.0,86738.0,0.27838944]
[1764576444590,0.00060153,86739.0,86738.0,0.67838944]
[1764576447365,0.00060153,86739.0,86738.0,0.67106944]
[1764576447517,0.00060153,86739.0,86738.0,0.67938944]
[1764576448083,0.00060153,86739.0,86738.0,0.68038944]
[1764576448498,0.00060153,86739.0,86738.0,0.67838944]
[1764576448943,0.00060153,86739.0,86738.0,0.67106944]
[1764576449141,0.00060153,86739.0,86738.0,0.67838944]
[1764576449744,0.00060153,86739.0,86738.0,0.67938944]
[1764576449947,0.00060153,86739.0,86738.0,0.68038944]
[1764576450188,0.00060153,86739.0,86738.0,0.67938944]
[1764576450599,0.00060153,86739.0,86738.0,0.68038944]
[1764576453492,0.00060153,86739.0,86738.0,0.67306944]
[1764576453803,0.00060153,86739.0,86738.0,0.68038944]
[1764576456591,0.00060153,86739.0,86738.0,1.00338944]
[1764576457273,0.0002,86770.0,86738.0,1.00338944]
[1764576457274,0.00846443,86778.0,86777.0,0.25795581]
[1764576457487,0.00858212,86778.0,86777.0,0.01159]
[1764576457624,0.00858212,86778.0,86777.0,0.01891]
[1764576458588,0.00858212,86778.0,86777.0,0.34181099]
[1764576458793,0.00858212,86778.0,86777.0,0.12722518]
[1764576459694,0.23905528,86778.0,86777.0,0.12722518]
[1764576460062,0.00858212,86778.0,86777.0,0.12722518]
[1764576460470,0.00858212,86778.0,86777.0,0.38180099]
[1764576461074,0.00858212,86778.0,86777.0,0.37448099]
[1764576461280,0.00858212,86778.0,86777.0,0.38180099]
[1764576463044,0.00981613,86778.0,86777.0,0.38280099]
[1764576463279,0.00981613,86778.0,86777.0,0.38180099]
[1764576463696,0.00981613,86778.0,86777.0,0.37548099]
[1764576463888,0.00981613,86778.0,86777.0,0.78380099]
[1764576464041,0.00981613,86778.0,86777.0,0.78280099]
[1764576464236,0.00981613,86778.0,86777.0,0.78580099]
[1764576464675,0.00981613,86778.0,86777.0,0.78180099]
[1764576464884,0.00981613,86778.0,86777.0,0.14500518]
[1764576465087,0.00981613,86778.0,86777.0,0.15332518]
[1764576465298,0.29335929,86778.0,86777.0,0.002]
[1764576465450,0.29335929,86778.0,86777.0,0.001]
[1764576465451,0.67888228,86778.0,86777.0,0.001]
[1764576465653,0.70365,86778.0,86777.0,0.001]
[1764576465891,0.70365,86778.0,86777.0,0.002]
[1764576466400,0.70365,86778.0,86777.0,0.001]
[1764576466596,0.70365,86778.0,86757.0,0.00732]
[1764576466597,0.01152538,86765.0,86757.0,0.00732]
[1764576466774,0.23051034,86764.0,86757.0,0.00732]
[1764576466954,0.01152565,86763.0,86757.0,0.00732]
[1764576467197,0.06252299,86771.0,86767.0,0.01152511]
[1764576467394,0.06252299,86771.0,86764.0,0.01152551]
[1764576467395,0.07404678,86777.0,86768.0,0.12700013]
[1764576467598,0.07404678,86777.0,86758.0,0.0247]
[1764576467599,0.01152458,86771.0,86760.0,0.2420467]
[1764576467800,0.01152511,86767.0,86760.0,0.01152604]
[1764576468005,0.55057306,86770.0,86764.0,0.01152551]
[1764576468241,0.24200896,86774.0,86767.0,0.10395029]
[1764576468400,0.24200828,86774.0,86770.0,0.24201821]
[1764576468605,0.38552299,86776.0,86771.0,0.01152458]
[1764576468803,0.02010577,86778.0,86775.0,0.01152405]
[1764576468804,0.00858212,86778.0,86775.0,0.01152405]
[1764576469005,0.00858212,86778.0,86777.0,0.24669581]
[1764576469432,0.00858212,86778.0,86777.0,0.27139581]
[1764576473057,0.00858212,86778.0,86777.0,0.27639581]
[1764576473262,0.00858212,86778.0,86777.0,0.27971581]
[1764576473439,0.00981613,86778.0,86777.0,0.27971581]
[1764576473820,0.00981613,86778.0,86777.0,0.28371581]
[1764576474257,0.00981613,86778.0,86777.0,0.27971581]
[1764576474459,0.00981613,86778.0,86777.0,0.27871581]
[1764576474686,0.00981613,86778.0,86777.0,0.28071581]
[1764576474821,0.00981613,86778.0,86777.0,0.28171581]
[1764576475431,0.00981613,86778.0,86777.0,0.28071581]
[1764576475635,0.00981613,86778.0,86777.0,0.27871581]
[1764576475842,0.00981613,86778.0,86777.0,0.27971581]
[1764576476046,0.00981613,86778.0,86777.0,0.28371581]
[1764576476242,0.00981613,86778.0,86777.0,0.28271581]
[1764576476450,0.00981613,86778.0,86777.0,0.27539581]
[1764576476675,0.00981613,86778.0,86777.0,0.02022]
[1764576477083,0.24028929,86778.0,86777.0,0.004]
[1764576477578,0.25665929,86778.0,86777.0,0.004]
[1764576477774,0.25665929,86778.0,86777.0,0.005]
[1764576478173,0.25665929,86778.0,86777.0,0.004]
[1764576478580,0.25665929,86778.0,86767.0,0.09242518]
[1764576478581,0.23049972,86768.0,86767.0,0.09242518]
[1764576479147,0.230513,86763.0,86761.0,0.00678]
[1764576479306,0.23051566,86762.0,86761.0,0.00678]
[1764576479674,0.230513,86763.0,86757.0,0.01884644]
[1764576479675,0.24204896,86760.0,86757.0,0.00732]
[1764576480111,0.23051832,86761.0,86757.0,0.01884644]
[1764576480289,0.23051832,86761.0,86758.0,0.2420501]
[1764576480706,0.2420438,86762.0,86759.0,0.23052342]
[1764576480909,0.2420438,86762.0,86758.0,0.01152631]
[1764576480910,0.23051841,86761.0,86758.0,0.01152631]
[1764576481120,0.01152644,86757.0,86750.0,0.03622737]
[1764576481296,0.24205818,86756.0,86752.0,0.01152711]
[1764576481520,0.24205818,86756.0,86747.0,0.4]
[1764576481521,0.01152711,86752.0,86748.0,0.01152764]
[1764576481701,0.01152684,86754.0,86751.0,0.09242518]
[1764576482036,0.01153,86761.0,86753.0,0.01622]
[1764576482037,0.01152618,86759.0,86753.0,0.01622]
[1764576482264,0.23053228,86756.0,86754.0,0.01622]
[1764576482430,0.23053426,86755.0,86754.0,0.01622]
[1764576482634,0.01152644,86757.0,86755.0,0.04092]
[1764576482831,0.01152644,86757.0,86756.0,0.01622]
[1764576483152,0.24205624,86757.0,86756.0,0.01622]
[1764576484293,0.2305316,86756.0,86755.0,0.001]
[1764576484749,0.75182537,86756.0,86755.0,0.001]
[1764576484956,0.65500459,86756.0,86755.0,0.001]
[1764576485158,0.24205624,86757.0,86740.0,0.0188487]
[1764576485159,0.30457851,86757.0,86751.0,0.01229]
[1764576485308,0.23053435,86755.0,86753.0,0.09242518]
[1764576485681,0.23053692,86754.0,86753.0,0.09242518]
[1764576486351,0.23054223,86752.0,86751.0,0.001]
[1764576486752,0.24691223,86752.0,86751.0,0.001]
[1764576486973,0.33201522,86752.0,86751.0,0.001]
[1764576487412,0.33201522,86752.0,86733.0,0.09974518]
[1764576487413,0.01152923,86736.0,86733.0,0.09974518]
[1764576487796,0.01152923,86736.0,86725.0,0.0115307]
[1764576487797,0.0115307,86725.0,86719.0,0.01153149]
[1764576488003,0.01153016,86729.0,86724.0,0.09242518]
[1764576488317,0.01152976,86732.0,86728.0,0.24682542]
[1764576488516,0.23059847,86731.0,86729.0,0.01622]
[1764576488860,0.23059805,86731.0,86729.0,0.01622]
[1764576489044,0.01152976,86732.0,86731.0,0.01622]
[1764576489341,0.01152883,86739.0,86731.0,0.0277499]
[1764576489507,0.24210756,86739.0,86734.0,0.0115295]
[1764576489717,0.06252299,86739.0,86735.0,0.01152937]
[1764576489926,0.06252299,86739.0,86736.0,0.01152923]
[1764576490127,0.07405182,86739.0,86735.0,0.02305874]
[1764576490326,0.07405182,86739.0,86734.0,0.0345885]
[1764576490512,0.30462895,86739.0,86735.0,0.24211679]
[1764576491046,0.01152923,86736.0,86732.0,0.24212368]
[1764576491230,0.01152923,86736.0,86732.0,0.01152976]
[1764576491429,0.06252299,86739.0,86734.0,0.0115295]
[1764576491652,0.06252299,86739.0,86736.0,0.24211268]
[1764576491814,0.01152817,86744.0,86736.0,0.24211268]
[1764576491815,0.02305751,86749.0,86738.0,0.10864518]
[1764576492015,0.01152817,86744.0,86740.0,0.23057242]
[1764576492270,0.01152817,86744.0,86738.0,0.09242518]
[1764576492271,0.24694703,86739.0,86733.0,0.01152963]
[1764576492483,0.01152844,86742.0,86738.0,0.32300451]
[1764576492620,0.01152844,86742.0,86738.0,0.09242518]
[1764576492621,0.24210021,86741.0,86738.0,0.09242518]
[1764576492823,0.23057678,86739.0,86738.0,0.09242518]
[1764576494405,0.23058512,86736.0,86733.0,0.001]
[1764576494746,0.24210809,86739.0,86734.0,0.0115295]
[1764576494946,0.23058183,86738.0,86734.0,0.24211913]
[1764576495151,0.06252299,86740.0,86735.0,0.01152937]
[1764576495373,0.23055969,86746.0,86735.0,0.01152937]
[1764576495374,0.00037091,86747.0,86743.0,0.0115283]
[1764576495576,0.00037091,86747.0,86739.0,0.10864518]
[1764576495577,0.01189868,86747.0,86741.0,0.02774857]
[1764576495787,0.00037091,86747.0,86742.0,0.01152844]
[1764576495999,0.2424543,86747.0,86742.0,0.24209632]
[1764576496206,0.2424543,86747.0,86742.0,0.01152844]
[1764576496387,0.24208742,86746.0,86742.0,0.24209675]
[1764576496811,0.24208742,86746.0,86743.0,0.24209196]
[1764576497298,0.24208648,86746.0,86743.0,0.24209196]
[1764576497485,0.2305637,86744.0,86741.0,0.01152857]
[1764576498108,0.2305637,86744.0,86739.0,0.3230016]
[1764576498109,0.01152844,86742.0,86739.0,0.09242518]
[1764576498314,0.02685844,86742.0,86739.0,0.09242518]
[1764576498533,0.24209733,86742.0,86739.0,0.09242518]
[1764576498745,0.01152844,86742.0,86739.0,0.09242518]
[1764576498954,0.25308859,86750.0,86742.0,0.24209529]
[1764576498955,0.24566675,86747.0,86742.0,0.24209529]
[1764576499123,0.01152804,86745.0,86739.0,0.3345284]
[1764576499343,0.23056384,86744.0,86741.0,0.23057019]
[1764576499505,0.24209201,86744.0,86740.0,0.23057181]
[1764576499711,0.2305664,86743.0,86740.0,0.23057181]
[1764576500114,0.24209201,86744.0,86741.0,0.23057134]
[1764576500426,0.24209201,86744.0,86740.0,0.23057181]
[1764576500626,0.23056678,86743.0,86740.0,0.23057181]
[1764576500901,0.01152804,86745.0,86742.0,0.24209681]
[1764576501524,0.00037091,86747.0,86744.0,0.02808817]
[1764576501723,0.00037091,86747.0,86746.0,0.24711818]
[1764576502328,0.00037091,86747.0,86744.0,0.01152817]
[1764576502724,0.00037091,86747.0,86741.0,0.24209911]
[1764576502960,0.00037091,86747.0,86745.0,0.2305608]
[1764576503159,0.00037091,86747.0,86744.0,0.01152817]
[1764576503377,0.24245459,86747.0,86743.0,0.24209342]
[1764576503532,0.24245471,86747.0,86742.0,0.24209643]
[1764576503751,0.00037091,86747.0,86746.0,0.01656]
[1764576503952,0.00037091,86747.0,86746.0,0.23055818]
[1764576504212,0.2305659,86744.0,86741.0,0.00732]
[1764576504429,0.00037091,86747.0,86744.0,0.23056342]
[1764576504617,0.00037091,86747.0,86744.0,0.01152817]
[1764576505156,0.01189868,86747.0,86743.0,0.0115283]
[1764576505578,0.00037091,86747.0,86745.0,0.23056066]
[1764576505778,0.00037091,86747.0,86744.0,0.01152817]
[1764576506172,0.23055835,86746.0,86732.0,0.23059409]
[1764576506378,0.01189868,86747.0,86742.0,0.01152844]
[1764576506592,0.01189868,86747.0,86744.0,0.01152817]
[1764576506795,0.00037091,86747.0,86745.0,0.23055831]
[1764576507213,0.00037091,86747.0,86746.0,0.23055818]
[1764576507799,0.00037091,86747.0,86743.0,0.0115283]
[1764576507997,0.01189868,86747.0,86745.0,0.23056071]
[1764576508219,0.00037091,86747.0,86746.0,0.23055818]
[1764576508800,0.00037091,86747.0,86743.0,0.0115283]
[1764576509041,0.00037091,86747.0,86744.0,0.24208931]
[1764576509237,0.00037091,86747.0,86746.0,0.23055818]
[1764576509663,0.00037091,86747.0,86746.0,0.24711818]
[1764576509810,0.00037091,86747.0,86746.0,0.23055818]
[1764576510405,0.00037091,86747.0,86745.0,0.23055819]
[1764576510606,0.00037091,86747.0,86746.0,0.23055818]
[1764576512338,0.00037091,86747.0,86746.0,0.27088818]
[1764576512574,0.00037091,86747.0,86746.0,0.04033]
[1764576512772,0.00037091,86747.0,86742.0,0.01152844]
[1764576512773,0.00037091,86747.0,86744.0,0.2420914]
[1764576513010,0.00037091,86747.0,86746.0,0.23055818]
[1764576514423,0.00037091,86747.0,86746.0,0.27088818]
[1764576516498,0.00037091,86747.0,86746.0,0.27188818]
[1764576516723,0.00037091,86747.0,86746.0,0.27588818]
[1764576518619,0.90364081,86770.0,86753.0,0.323]
[1764576518819,0.90364081,86770.0,86754.0,0.09974518]
[1764576518820,0.01152658,86756.0,86754.0,0.09974518]
[1764576519162,0.23052421,86759.0,86754.0,0.09974518]
[1764576519388,0.01152631,86758.0,86756.0,0.01141]
[1764576519693,0.00289,86759.0,86754.0,0.11127202]
[1764576519826,0.23779581,86779.0,86767.0,0.01152511]
[1764576519827,0.23047706,86777.0,86767.0,0.01152511]
[1764576520089,0.01152352,86779.0,86769.0,0.01141]
[1764576520090,0.24241136,86770.0,86769.0,0.01141]
[1764576520478,0.01264473,86770.0,86769.0,0.01141]
[1764576520678,0.24313914,86770.0,86769.0,0.01141]
[1764576523694,0.01152511,86767.0,86764.0,0.00732]
[1764576524007,0.23050503,86766.0,86764.0,0.00732]
[1764576524305,0.23050769,86765.0,86764.0,0.00732]
[1764576524913,0.23050769,86765.0,86764.0,0.02361]
[1764576525804,0.23050503,86766.0,86764.0,0.02361]
[1764576525991,0.23050503,86766.0,86765.0,0.01629]
[1764576526542,0.2420284,86767.0,86765.0,0.01629]
[1764576526721,0.00039223,86770.0,86767.0,0.2304999]
[1764576526926,0.00039223,86770.0,86769.0,0.09242518]
[1764576527118,0.00039223,86770.0,86768.0,0.23049874]
[1764576528821,0.23088697,86770.0,86768.0,0.23049874]
[1764576529253,0.00039223,86770.0,86768.0,0.23049874]
[1764576529471,0.00039223,86770.0,86767.0,0.24202703]
[1764576529657,0.00069615,86769.0,86768.0,0.09242518]
[1764576529954,0.00039223,86770.0,86768.0,0.3229249]
[1764576530307,0.00039223,86770.0,86769.0,0.28338706]
[1764576530957,0.00039223,86770.0,86769.0,0.25165706]
[1764576531119,0.00039223,86770.0,86769.0,0.02116]
[1764576531332,0.00039223,86770.0,86768.0,0.09242518]
[1764576531333,0.00039223,86770.0,86768.0,0.32292434]
[1764576531680,0.00039223,86770.0,86769.0,0.23049706]
[1764576532259,0.23088664,86770.0,86768.0,0.32292434]
[1764576532577,0.23088664,86770.0,86768.0,0.09242518]
[1764576532879,0.00039223,86770.0,86768.0,0.32292422]
[1764576533286,0.01152485,86769.0,86761.0,0.2419262]
[1764576533483,0.00039223,86770.0,86761.0,0.2419262]
[1764576533484,0.01191695,86770.0,86766.0,0.23050454]
[1764576533640,0.00039223,86770.0,86768.0,0.09242518]
[1764576533843,0.23088713,86770.0,86768.0,0.09242518]
[1764576534066,0.01191695,86770.0,86765.0,0.24203243]
[1764576534378,0.24241205,86770.0,86767.0,0.23050141]
[1764576534782,0.24241205,86770.0,86766.0,0.24202937]
[1764576535020,0.24241205,86770.0,86767.0,0.23050169]
[1764576535208,0.00066451,86768.0,86767.0,0.23050169]
[1764576535353,0.00066451,86768.0,86766.0,0.24202937]
[1764576535562,0.24241205,86770.0,86766.0,0.24202937]
[1764576535910,0.00063288,86767.0,86766.0,0.24203028]
[1764576540483,0.00063288,86767.0,86760.0,0.2420446]
[1764576540484,0.01152604,86760.0,86756.0,0.24205721]
[1764576540687,0.23051624,86762.0,86758.0,0.10395149]
[1764576540921,0.01152565,86763.0,86758.0,0.09242518]
[1764576541133,0.2420407,86763.0,86758.0,0.10395149]
[1764576541436,0.2420407,86763.0,86755.0,0.28994958]
[1764576541437,0.01152631,86758.0,86755.0,0.01616]
[1764576541610,0.01152631,86758.0,86752.0,0.2305398]
[1764576541611,0.23053399,86756.0,86752.0,0.2305398]
[1764576541811,0.01152631,86758.0,86754.0,0.24206372]
[1764576542034,0.24205328,86758.0,86756.0,0.001]
[1764576542437,0.01152604,86760.0,86755.0,0.24205999]
[1764576542698,0.24203651,86764.0,86760.0,0.03268604]
[1764576542879,0.24203651,86764.0,86763.0,0.01616]
[1764576545031,0.01152551,86764.0,86763.0,0.01616]
[1764576545266,0.24203585,86764.0,86763.0,0.01616]
[1764576545471,0.01880405,86775.0,86763.0,0.06905]
[1764576545667,0.01152445,86772.0,86767.0,0.01152511]
[1764576545872,0.00728,86775.0,86769.0,0.23049706]
[1764576546187,0.01152418,86774.0,86769.0,0.23049706]
[1764576546608,0.24200933,86774.0,86769.0,0.23049706]
[1764576546809,0.26690928,86774.0,86769.0,0.23049706]
[1764576547314,0.02489995,86774.0,86769.0,0.23049706]
[1764576547500,0.03642387,86776.0,86769.0,0.26781706]
[1764576547666,0.01152392,86776.0,86769.0,0.29954706]
[1764576547863,0.24200379,86776.0,86769.0,0.29954706]
[1764576548070,0.03642387,86776.0,86769.0,0.29954706]
[1764576548270,0.00886,86777.0,86769.0,0.26881706]
[1764576548469,0.24200249,86776.0,86769.0,0.26881706]
[1764576548812,0.23048318,86775.0,86769.0,0.26881706]
[1764576548970,0.01152418,86774.0,86769.0,0.26881706]
[1764576549174,0.01152418,86774.0,86769.0,0.24765706]
[1764576549812,0.01152445,86772.0,86769.0,0.01716]
[1764576550014,0.24201397,86772.0,86769.0,0.24765706]
[1764576550155,0.01152445,86772.0,86769.0,0.24765706]
[1764576550776,0.00886,86777.0,86769.0,0.26881706]
[1764576551004,0.01152418,86774.0,86769.0,0.30054706]
[1764576551236,0.00112001,86770.0,86769.0,0.26881706]
[1764576551397,0.00112001,86770.0,86769.0,0.001]
[1764576551846,0.00112001,86770.0,86769.0,0.23149706]
[1764576552049,0.00112001,86770.0,86769.0,0.001]
[1764576552402,0.00112001,86770.0,86769.0,0.23149706]
[1764576552653,0.23161442,86770.0,86769.0,0.001]
[1764576552862,0.00112001,86770.0,86769.0,0.001]
[1764576553455,0.23161442,86770.0,86769.0,0.001]
[1764576553774,0.00112001,86770.0,86769.0,0.001]
[1764576554120,0.00112001,86770.0,86767.0,0.01152511]
[1764576554321,0.24241369,86770.0,86767.0,0.24202715]
[1764576554537,0.24241369,86770.0,86766.0,0.24203003]
[1764576554538,0.00066451,86768.0,86766.0,0.24203003]
[1764576554770,0.24241369,86770.0,86767.0,0.32292607]
[1764576555521,0.00039223,86770.0,86768.0,0.23049876]
[1764576555727,0.00039223,86770.0,86769.0,0.23049706]
[1764576556774,0.00039223,86770.0,86769.0,0.28287706]
[1764576556977,0.00039223,86770.0,86769.0,0.25165706]
[1764576557934,0.00039223,86770.0,86769.0,0.28287706]
[1764576558103,0.00039223,86770.0,86769.0,0.25165706]
[1764576558310,0.00039223,86770.0,86769.0,0.25265706]
[1764576559134,0.23088664,86770.0,86769.0,0.001]
[1764576560333,0.00039223,86770.0,86769.0,0.001]
[1764576560760,0.00112001,86770.0,86769.0,0.23149706]
[1764576561653,0.00112001,86770.0,86769.0,0.28277706]
[1764576561843,0.00112001,86770.0,86769.0,0.02106]
[1764576562054,0.00112001,86770.0,86769.0,0.25155706]
[1764576563548,0.23161442,86770.0,86769.0,0.02106]
[1764576563758,0.23161442,86770.0,86769.0,0.001]
[1764576565763,0.00112001,86770.0,86769.0,0.001]
[1764576566384,0.23161442,86770.0,86769.0,0.001]
[1764576567213,0.2313927,86770.0,86769.0,0.001]
[1764576568154,0.00089829,86770.0,86769.0,0.001]
[1764576569237,0.00089829,86770.0,86769.0,0.23149706]
[1764576570001,0.00089829,86770.0,86769.0,0.001]
[1764576570725,0.2313927,86770.0,86769.0,0.001]
[1764576571441,0.00089829,86770.0,86769.0,0.001]
[1764576571647,0.2313927,86770.0,86769.0,0.001]
[1764576571841,0.00089829,86770.0,86769.0,0.001]
[1764576572044,0.2313927,86770.0,86769.0,0.001]
[1764576572247,0.2313927,86770.0,86767.0,0.24202537]
[1764576572453,0.23066492,86770.0,86767.0,0.24202537]
[1764576572650,0.23066492,86770.0,86768.0,0.23049927]
[1764576572887,0.23050101,86768.0,86766.0,0.01545]
[1764576573638,0.23050237,86767.0,86766.0,0.01545]
[1764576574220,0.23050237,86767.0,86766.0,0.01645]
[1764576574575,0.23050237,86767.0,86766.0,0.03592]
[1764576574794,0.23049996,86768.0,86766.0,0.04986]
[1764576575009,0.23049996,86768.0,86766.0,0.001]
[1764576575211,0.04744,86767.0,86766.0,0.001]
[1764576575547,0.24205007,86759.0,86757.0,0.00728]
[1764576576033,0.24205007,86759.0,86758.0,0.01947]
[1764576576206,0.23051566,86762.0,86757.0,0.00728]
[1764576576404,0.23051566,86762.0,86756.0,0.02697658]
[1764576576405,0.23052375,86759.0,86756.0,0.01545]
[1764576576621,0.23052693,86758.0,86757.0,0.001]
[1764576576825,0.23052693,86758.0,86757.0,0.002]
[1764576577039,0.23052693,86758.0,86756.0,0.01545]
[1764576577816,0.01152591,86761.0,86756.0,0.02697658]
[1764576578021,0.23052438,86759.0,86757.0,0.001]
[1764576578225,0.23053692,86754.0,86753.0,0.09242518]
[1764576578466,0.23053426,86755.0,86753.0,0.09242518]
[1764576578838,0.24205849,86756.0,86753.0,0.09242518]
[1764576579221,0.24205849,86756.0,86752.0,0.01152711]
[1764576579222,0.01152697,86753.0,86750.0,0.01616]
[1764576579425,0.01152697,86753.0,86747.0,0.01141]
[1764576579426,0.01152711,86752.0,86747.0,0.01141]
[1764576579613,0.01152711,86752.0,86747.0,0.25349232]
[1764576579817,0.01152697,86753.0,86750.0,0.23054735]
[1764576580067,0.01152697,86753.0,86749.0,0.01152751]
[1764576580068,0.01152658,86756.0,86752.0,0.24206867]
[1764576580262,0.24206011,86756.0,86753.0,0.23053855]
[1764576580709,0.24206011,86756.0,86752.0,0.01152711]
[1764576580874,0.01152538,86765.0,86755.0,0.03099671]
[1764576581071,0.01152591,86761.0,86757.0,0.01152644]
[1764576581274,0.2420491,86760.0,86757.0,0.01152644]
[1764576581475,0.2420491,86760.0,86758.0,0.02939]
[1764576582419,0.23051356,86763.0,86758.0,0.02939]
[1764576582635,0.23051881,86761.0,86759.0,0.03492]
[1764576582789,0.01152578,86762.0,86759.0,0.03492]
[1764576583037,0.23051356,86763.0,86759.0,0.30635852]
[1764576583598,0.24204252,86762.0,86759.0,0.06431]
[1764576583843,0.23051837,86761.0,86759.0,0.03492]
[1764576584022,0.23052097,86760.0,86759.0,0.03492]
[1764576584837,0.23052097,86760.0,86747.0,0.01141]
[1764576584838,0.01152684,86754.0,86747.0,0.01141]
[1764576585036,0.01152883,86739.0,86729.0,0.01545]
[1764576585227,0.01152883,86739.0,86723.0,0.01545]
[1764576585228,0.01153043,86727.0,86723.0,0.01545]
[1764576585567,0.01153003,86730.0,86724.0,0.09242518]
[1764576585568,0.01153016,86729.0,86724.0,0.09242518]
[1764576585697,0.24213101,86730.0,86724.0,0.33457234]
[1764576585887,0.01152976,86732.0,86724.0,0.33457234]
[1764576585888,0.01152976,86732.0,86729.0,0.01947]
[1764576586093,0.24212524,86732.0,86731.0,0.01947]
[1764576586299,0.0115291,86737.0,86731.0,0.25006549]
[1764576586540,0.24210647,86739.0,86734.0,0.24211908]
[1764576586744,0.24210866,86738.0,86734.0,0.24211908]
[1764576587054,0.01152857,86741.0,86738.0,0.01484]
[1764576587212,0.24210022,86741.0,86740.0,0.01963]
[1764576587556,0.24210004,86741.0,86740.0,0.01963]
[1764576587699,0.24210004,86741.0,86740.0,0.04713]
[1764576588561,0.23057147,86741.0,86740.0,0.05213]
[1764576589188,0.23057147,86741.0,86740.0,0.02463]
[1764576590583,0.23057147,86741.0,86740.0,0.05213]
[1764576591294,0.23057147,86741.0,86740.0,0.005]
[1764576593905,0.24972147,86741.0,86740.0,0.005]
[1764576595273,0.23059369,86733.0,86731.0,0.0115299]
[1764576596381,0.24212332,86733.0,86729.0,0.00022171]
[1764576596584,0.23060071,86730.0,86729.0,0.00022171]
[1764576597397,0.23060071,86730.0,86729.0,0.00122171]
[1764576597599,0.23060053,86731.0,86729.0,0.06819171]
[1764576597800,0.0115295,86734.0,86730.0,0.25022978]
[1764576598009,0.24212188,86734.0,86732.0,0.01963]